Cogmind - Beta 14 *** ADVENTURER MODE // 2024.08.10 @ 21:33:25 Player: fungoose Result: Destroyed by Y-45 Defender with Heavy Assault Rifle Performance ------------- Evolutions (1) 500 Regions Visited (3) 600 Robots Destroyed (67) 335 Value Destroyed (1677) 1677 Prototype IDs (2) 40 Alien Tech Used (0) 0 Bonus (0) 0 TOTAL SCORE: 3152 Bonus ------- None Cogmind --------- Core Integrity 0/400 Matter 294/300 Energy 275/275 System Corruption 0% Temperature Cool (57) Movement Treading (160) Location -9/Storage Parts ------- > --- POWER (1) -------- Deuterium Engine > --- PROPULSION (3) --- Light Treads Light Treads Light Treads > --- UTILITY (3) ------ Large Storage Unit Hardened Medium Armor Plating Hardened Medium Armor Plating > --- WEAPON (2) ------- Medium Laser Improved Assault Rifle > --- INVENTORY (15) --- Improved Ion Engine Heavy Ion Engine Light Treads Light Treads Heat Sink Cooling System Large Battery (200) Weight Redist. System Sensor Array Advanced Targeting Computer Utility Shielding Heavy Armor Plating Grenade Launcher Rocket Launcher Peak State ------------ > --- POWER ------------ Deuterium Engine > --- PROPULSION ------- Light Treads Light Treads Light Treads > --- UTILITY ---------- Large Storage Unit Hardened Medium Armor Plating Hardened Medium Armor Plating > --- WEAPON ----------- Heavy Assault Rifle Improved Assault Rifle > --- INVENTORY -------- Light Ion Engine Improved Ion Engine Heat Sink Large Battery Weight Redist. System Sensor Array Signal Interpreter Advanced Targeting Computer Utility Shielding Heavy Armor Plating Medium Laser Grenade Launcher Rocket Launcher [Rating: 20] Favorites ----------- Power Deuterium Engine Engine Deuterium Engine Propulsion Light Treads Treads Light Treads Utility Hardened Medium Armor Plating Device ECM Suite Storage Large Storage Unit Processor Visual Processing Unit Protection Hardened Medium Armor Plating Weapon Improved Assault Rifle Energy Gun Medium Laser Ballistic Gun Improved Assault Rifle Launcher Rocket Launcher Build | -11 -10 -9 -9 ------- Run | Yrd Mat Mat Sto Slots Evolved 2 | . . 2 . Power . | . . . . Propulsion 1 | . . 1 . Utility 1 | . . 1 . Weapon . | . . . . Parts Attached 41 | 6 8 22 5 Power 6 | 1 1 4 . Engine 6 | 1 1 4 . Core . | . . . . Reactor . | . . . . Propulsion 11 | 2 . 5 4 Treads 11 | 2 . 5 4 Leg . | . . . . Wheel . | . . . . Hover . | . . . . Flight . | . . . . Utility 11 | 1 4 6 . Device 2 | . 1 1 . Storage 2 | 1 1 . . Processor 1 | . 1 . . Hackware . | . . . . Protection 6 | . 1 5 . Artifact . | . . . . Weapon 13 | 2 3 7 1 Energy Gun 6 | 1 2 2 1 Energy Cannon . | . . . . Ballistic Gun 5 | 1 1 3 . Ballistic Cannon . | . . . . Launcher 2 | . . 2 . Special Weapon . | . . . . Impact Weapon . | . . . . Slashing Weapon . | . . . . Piercing Weapon . | . . . . Special Melee Weapon . | . . . . Unidentified Prototypes 2 | . . 2 . Parts Lost 12 | . . 10 2 Power 2 | . . 2 . Propulsion 6 | . . 4 2 Utility 1 | . . 1 . Weapon 3 | . . 3 . Highest Loss Streak 6 | . . 6 1 To Critical Strikes . | . . . . Average Slot Usage (%) 89 | . 99 81 97 Engine 10 | . 14 8 11 Treads 24 | . 28 19 30 Storage 11 | . 14 11 11 Processor 1 | . 5 . . Protection 16 | . 7 19 22 Energy Gun 6 | . 14 2 9 Ballistic Gun 15 | . 14 18 11 Peak Build Rating 20 | 6 8 20 20 Average Rating 13 | 4 7 14 18 On Entrance 8 | . 6 7 20 Naked Turns . | . . . . Heaviest Build 52 | 13 30 52 52 Greatest Support 60 | 40 40 60 60 Greatest Overweight (x) 9 | 2 . 9 1 Average Overweight (x) . | . . . . Largest Inventory Capacity 15 | 8 15 15 15 Average Capacity 12 | 5 8 15 15 Most Carried 15 | 5 8 15 15 Average Carried 10 | 2 7 11 14 Final Capacity 15 | 8 15 15 15 Final Carried 15 | 2 8 13 15 Class Distribution -------------------- 92% | Mutant 7% | Scavenger-Mutant Dominant Class ---------------- Mutant | -10/Materials Mutant | -9/Materials Mutant | -9/Storage Resources | -11 -10 -9 -9 ----------- Run | Yrd Mat Mat Sto Matter Collected 1393 | 250 152 622 369 Remotely . | . . . . Salvage Created 2221 | . 261 1335 625 Parts 165 | . 25 104 36 Haulers Intercepted 2 | . . 2 . Recyclers Shooed 4 | . . 1 3 Parts Field Recycled . | . . . . Retrieved Matter . | . . . . Parts Self-Destructed . | . . . . Prevented . | . . . . Kills | -11 -10 -9 -9 ------- Run | Yrd Mat Mat Sto Combat Hostiles Destroyed 52 | . 9 32 11 Melee 1 | . . 1 . Guns 47 | . 9 29 9 AOE 4 | . . 2 2 Classes Destroyed 8 | . 4 4 . Worker 3 | . 1 . 2 Hauler 2 | . . 2 . Recycler 3 | . . 2 1 Operator 1 | . . 1 . Watcher 6 | . 1 4 1 Swarmer 19 | . 6 13 . Grunt 20 | . 3 11 6 Sentry 13 | . . 8 5 Best Kill Streak 6 | . 6 5 5 Combat Bots Only 5 | . 5 5 3 Max Kills in Single Turn 3 | . 1 1 3 Gunslinging . | . . . . Exploded 1 | . . 1 1 Melee 1 | . . 1 . Uniques/NPCs Destroyed . | . . . . Combat | -11 -10 -9 -9 -------- Run | Yrd Mat Mat Sto Hostile Shots Fired 360 | . 60 245 55 Missed 103 | . 15 78 10 Damage Taken 2448 | . 355 1579 514 Core 426 | . 19 339 68 Absorbed by Shields . | . . . . Redirected to Shielding 15 | . . 15 . Ignored by Resistances 739 | . 113 478 148 Core Remaining (%) 96 | 100 92 . . Volleys Fired 177 | . 26 110 41 Largest 2 | . 2 2 2 Hottest 100 | . 70 100 73 Shots Fired 347 | . 52 213 82 Gun 336 | . 52 205 79 Cannon . | . . . . Launcher 11 | . . 8 3 Special . | . . . . Kinetic 244 | . 26 177 41 Thermal 92 | . 26 28 38 Explosive 11 | . . 8 3 Electromagnetic . | . . . . Robot Hit Streak 41 | . 11 36 41 Robot Miss Streak 3 | . 3 3 1 Penetration Max . | . . . . Secondary Targets 10 | . 2 8 . Max Gunslinging Chain 1 | . 1 1 . Shots Hit Robots 271 | . 36 163 72 Core Hits 108 | . 16 62 30 Critical Kills . | . . . . Critical Parts Destroyed . | . . . . Critical Strikes 10 | . 3 4 3 Burn 10 | . 3 4 3 Melee Attacks . | . . . . Impact . | . . . . Slashing . | . . . . Piercing . | . . . . Sneak Attacks . | . . . . Combat Hostiles . | . . . . Follow-up Attacks . | . . . . Damage Inflicted 4318 | . 472 2728 1118 Guns 3738 | . 472 2318 948 Cannons . | . . . . Explosions 568 | . . 398 170 Melee . | . . . . Ramming 12 | . . 12 . Kinetic 2810 | . 246 2039 525 Thermal 1134 | . 226 485 423 Explosive 362 | . . 192 170 Electromagnetic . | . . . . Impact . | . . . . Slashing . | . . . . Piercing . | . . . . Highest Corruption . | . . . . Average Corruption . | . . . . Corruption Purged . | . . . . Corruption Blocked . | . . . . Overload Shots . | . . . . Overflow Damage 40 | . . 40 . Projectiles . | . . . . Explosions 40 | . . 40 . Melee . | . . . . Knockbacks . | . . . . Impact . | . . . . Kinetic . | . . . . Secondary . | . . . . Self-Inflicted Damage 24 | . . . 24 Shots 1 | . . . 1 Rammed 2 | . . 2 . Targets Rammed 2 | . . 2 . Kicked . | . . . . Crushed . | . . . . Highest Temperature 225 | . 135 117 225 Average Temperature 56 | . 42 35 80 Received Heat Transfer 1146 | . 186 669 291 Siege Activations . | . . . . Robots Corrupted . | . . . . Combat Hostiles . | . . . . Parts Fried . | . . . . Impact Corruptions . | . . . . Robots Melted . | . . . . Combat Hostiles . | . . . . Parts Melted 11 | . . 5 6 Heat Transferred 3578 | . 888 1210 1480 Parts Sabotaged . | . . . . Parts Stolen . | . . . . Parts Stripped . | . . . . Power Chain Reactions . | . . . . Alert | -11 -10 -9 -9 ------- Run | Yrd Mat Mat Sto Peak Influence 310 | . 197 280 310 Initial 52 | . . 5 52 Average 83 | . 40 91 146 Maximum Alert Level 1 | . . 1 1 Low Security (%) 88 | 100 100 86 74 Level 1 11 | . . 13 25 Level 2 . | . . . . Level 3 . | . . . . Level 4 . | . . . . Level 5 . | . . . . High Security . | . . . . Max Security . | . . . . Squads Dispatched 6 | . . 4 2 Investigation 2 | . . 2 . Extermination . | . . . . Reinforcement 4 | . . 2 2 Assault . | . . . . Garrison . | . . . . Intercept . | . . . . Searches Triggered . | . . . . Construction Impeded . | . . . . Haulers Reinforced . | . . . . Active Scanning Responses . | . . . . Cargo Convoy Interrupts . | . . . . Stealth | -11 -10 -9 -9 --------- Run | Yrd Mat Mat Sto Distress Signals 6 | . 2 2 2 Communications Jammed . | . . . . Distress Signals . | . . . . Times Spotted 80 | . 18 45 17 Peak Tracking Total 7 | . 7 7 4 Tactical Retreats 5 | . 2 1 2 Traps | -11 -10 -9 -9 ------- Run | Yrd Mat Mat Sto Traps Triggered 2 | . . 2 . Indirectly . | . . . . Trap Hack Attempts . | . . . . Triggered . | . . . . Disarmed . | . . . . Reprogrammed . | . . . . Reused . | . . . . Traps Extracted . | . . . . Installed . | . . . . Triggered . | . . . . Machines | -11 -10 -9 -9 ---------- Run | Yrd Mat Mat Sto Machines Disabled 2 | . . 2 . Max in Single Turn 2 | . . 2 . Machines Repaired . | . . . . Machines Dismantled . | . . . . Machines Sabotaged . | . . . . Overloaded Fab Kills . | . . . . Hacking | -11 -10 -9 -9 --------- Run | Yrd Mat Mat Sto Machines Accessed 2 | . 1 . 1 Terminals 2 | . 1 . 1 Fabricators . | . . . . Repair Stations . | . . . . Recycling Units . | . . . . Scanalyzers . | . . . . Garrison Access . | . . . . Total Hacks 2 | . 1 . 1 Successful 1 | . 1 . . Failed 1 | . . . 1 Catastrophic . | . . . . Database Lockouts . | . . . . Manual . | . . . . Terminals 2 | . 1 . 1 Fabricators . | . . . . Repair Stations . | . . . . Recycling Units . | . . . . Scanalyzers . | . . . . Garrison Access . | . . . . Terminal Hacks 1 | . 1 . . Alert Level 1 | . 1 . . Fabricator Hacks . | . . . . Repair Station Hacks . | . . . . Recycling Unit Hacks . | . . . . Scanalyzer . | . . . . Garrison Access Hacks . | . . . . Unauthorized Hacks . | . . . . Terminals . | . . . . Fabricators . | . . . . Repair Stations . | . . . . Recycling Units . | . . . . Scanalyzers . | . . . . Garrison Access . | . . . . Data Cores Recovered . | . . . . Used . | . . . . Hacking Detections 1 | . . . 1 Full Trace Events . | . . . . Feedback Events . | . . . . Feedback Blocked . | . . . . Robot Schematics Acquired . | . . . . Robots Built . | . . . . Authchips . | . . . . Time . | . . . . Total Robot Build Rating . | . . . . Part Schematics Acquired . | . . . . Parts Built . | . . . . Authchips . | . . . . Time . | . . . . Total Part Build Rating . | . . . . Parts Repaired . | . . . . Time . | . . . . Parts Recycled . | . . . . Recycled Matter . | . . . . Retrieved Matter . | . . . . Retrieved Components . | . . . . Parts Scanalyzed . | . . . . Part Schematics Acquired . | . . . . Parts Damaged . | . . . . Bothacking | -11 -10 -9 -9 ------------ Run | Yrd Mat Mat Sto Used RIF Installer . | . . . . Robots Hacked . | . . . . Non-combat . | . . . . Combat . | . . . . Robot Hacks Applied . | . . . . Relay Couplers Released . | . . . . Fabnet Peak Effective % . | . . . . Robots Rewired . | . . . . Allies Hacked . | . . . . Hacks Repelled . | . . . . Allies | -11 -10 -9 -9 -------- Run | Yrd Mat Mat Sto Total Allies . | . . . . Largest Group . | . . . . Highest-Rated Group . | . . . . Highest-Rated Ally . | . . . . Total Orders . | . . . . Ally Attacks . | . . . . Total Damage . | . . . . Kills . | . . . . Allies Corrupted . | . . . . Allies Melted . | . . . . Intel | -11 -10 -9 -9 ------- Run | Yrd Mat Mat Sto Robot Analysis Total . | . . . . Derelict Logs Recovered . | . . . . Drone Launches . | . . . . Drone Recoveries . | . . . . Exploration | -11 -10 -9 -9 ------------- Run | Yrd Mat Mat Sto Turns Passed 5783 | 386 1418 2843 1136 Spaces Moved 2760 | 242 820 1124 574 Core 65 | 37 . 28 . Treads 2695 | 205 820 1096 574 Legs . | . . . . Wheels . | . . . . Hover . | . . . . Flight . | . . . . Fastest Speed 50 | 50 160 160 160 Average Speed 184 | 153 160 216 171 Slowest Speed 500 | 160 160 500 240 Overloaded Moves . | . . . . Propulsion Burnouts . | . . . . Robots Hopped . | . . . . Cave-ins Triggered . | . . . . Exploration Rate (%) 54 | 7 88 67 56 Regions Visited 3 Branch Regions 1 Pre-discovered Areas . | . . . . Known Exits Taken . | . . . . Unknown Exits Taken 3 | 1 1 1 . Scrap Searched . | . . . . Spaces Dug . | . . . . Terrain Destroyed 136 | . . 106 30 Melee . | . . . . Projectile . | . . . . AOE 136 | . . 106 30 Terrain Rammed . | . . . . Walls Destroyed . | . . . . Machines Disabled . | . . . . Actions | -11 -10 -9 -9 --------- Run | Yrd Mat Mat Sto Total 3105 | 257 874 1327 647 Wait 54 | 2 2 35 15 Move 2757 | 241 819 1123 574 Hop . | . . . . Pick Up 52 | 8 13 25 6 Fast Attach . | . . . . Attach 27 | 6 2 17 2 Detach 2 | . 1 1 . Swap 14 | . 6 5 3 Drop 16 | . 5 9 2 Fire 177 | . 26 110 41 Melee . | . . . . Ram . | . . . . Kick . | . . . . Crush 2 | . . 2 . Escape Stasis . | . . . . Rewire 4 | . . . 4 Trap . | . . . . Miscellaneous . | . . . . Route ------- -11/Scrapyard -10/Materials (discovered 3 exits: *Mat x2 / [*Min]) -9/Materials (discovered 4 exits: [*Mat] / [*Min x2] / *Sto) -9/Storage History --------- Turn | Location | Event 29 | -11/Scrapyard | Discovered new exit (range 15) 387 | -11/Scrapyard | Entered Materials 388 | -10/Materials | Build established: Mutant 707 | -10/Materials | Discovered new exit (range 7) 911 | -10/Materials | Discovered new exit (range 6) 1096 | -10/Materials | Discovered new exit (range 8) 1805 | -10/Materials | Entered another Materials area 1805 | -9/Materials | Evolved 2 slots: Propulsion x1, Utility x1 2080 | -9/Materials | Lost 6 parts (1p2n1u2w) 2385 | -9/Materials | Discovered new exit (range 7) 2683 | -9/Materials | Core integrity fell below 50% 2818 | -9/Materials | Discovered new exit (range 14) 3040 | -9/Materials | Core integrity fell below 20% 3338 | -9/Materials | Discovered new exit (range 15) 4358 | -9/Materials | Discovered new exit (range 15) 4648 | -9/Materials | Entered Storage 5784 | -9/Storage | Destroyed by Y-45 Defender with Heavy Assault Rifle Last Messages --------------- 05510_ K-01 Serf collects debris. 05572_ Acquired 13 matter. 05591_ K-01 Serf cleans the Component Storage. 05630_ Connecting with Terminal... 05721_ K-01 Serf cleans the Storage Shell. 05741_ Attempting to rewire R-06 Scavenger. 05741_ R-06 Scavenger is broken beyond repair. 05742_ Attempting to rewire R-06 Scavenger. 05742_ R-06 Scavenger is broken beyond repair. 05743_ Attempting to rewire R-06 Scavenger. 05743_ R-06 Scavenger is broken beyond repair. 05744_ Attempting to rewire R-06 Scavenger. 05744_ R-06 Scavenger is broken beyond repair. 05773_ O-16 Technician distress signal alerts nearby ally. 05773_ O-16 Technician: "IFF HANDSHAKE FAILED. SECURING TERMINAL." 05777_ ALERT: Hostiles spotted, dispatching reinforcements to Terminal S007. 05782_ K-01 Serf cleans the Transfer Shaft. Map ----- +----------------------------------------------------+ | | | | | | | | | | | | | | | | | | | | | ????????????????????????????????????????????????? | | ????????????????????????????????????????????????? | | ????????????????????????????????????????????????? | | ????????????????????????????????????????????????? | | ????????????????????????????????????????????????? | | ????????????????????????????????????????????????? | | ????????????????????????????????????????????????? | | ???????????????????????########?????????????????? | | ???????????????????????#[ #?????????????????? | | ???????????????????????# = #?????????????????? | | ???????????????????????# % #????+##??????????? | | ???????????????????????# #??? +??????????? | | ?????????????###???????# | #### #??????????? | | ?????????????# ?????# + #??????????? | | ?????????????# g #######+### # "????????? | | ?????????????# """ /Y @ + "????????? | | ?????????????+ "G #/##### #??????????? | | ?????????????# """??# ???# """ #??????????? | | ?????????????# ????# ???# """k #??????????? | | ?????????????#??????# ??# """ #??????????? | | ????????????????????# ??# ###????????? | | ????????????????????# ?# # ?????????? | | ????????????????????+ ?# """ / ????????? | | ????????????????????# ## """ # ??????? | | ????????????????????##+#### """ #?? ??????? | | ????????????????????? ???## + "????????? | | ?????????????????????# ????# # "????????? | | ?????????????????????# ##### " #??????????? | | ?????????????????????# T #??????????? | | """??????????????????# " #??????????? | | """??????????????????# #??????????? | | ???????????????????# #??????????? | | +#???????????????????# ###T# #??????????? | | ???????????????????# #?### #??????????? | | ????????????????????# #???? #??????????? | | ?????????????###?????# ##+#####? +??????????? | | ##########??##T####### # #? #??????????? | | #??# + #? #??????????? | | """"" #??# #% ] *#?? #??????????? | | """"" #### #! !#?? #??????????? | +----------------------------------------------------+ Best States ------------- Heat Dissipation 28 Energy Generation 14 Energy Capacity 275 Matter Stores 300 Matter Capacity 300 Sight Range 18 Terrain Scan Density 10 ECM Strength 1 Armor Coverage 600 Resistance: KI 20 Resistance: TH 20 Resistance: EX 20 Resistance: EM 20 Resistance: I 20 Resistance: S 20 Resistance: P 20 Utility Shielding 33 Evasion (%) 50 Recoil Reduction 3 Offensive Hacking 10 Item Schematics ----------------- None Robot Schematics ------------------ None Fabricated ------------ Nothing Alien Tech Used ----------------- None Achievements -------------- Fist Fight Loot Pinata Challenges ------------ None Game ------ Seed ProtonArmageddonMegatreads Manual? 0 Play Time 00:43:33 Cumulative 2.8 hours Start 2024.08.10 @ 18:27:05 End 2024.08.10 @ 21:33:25 Sessions 1 Manual Loads 0 Difficulty Adventurer Special Mode None Game No. 4 Rogue 0 Adventurer 4 Explorer 0 Win Type - Total 0 Types 0/0/0/0/0/0/0/0/0 Lore% 0 Gallery% 6 Achievement% 6 Wizard Run 0 Options --------- Layout 1 ASCII 0 Keyboard 0 Movement Arrows Keybinds 0 Fullscreen 1 Font 24/Smallcaps Map View 50x35 Zoom Use 0% Tactical HUD 1 Map Filters NONE Filters NONE Steam 1 RUN: e8c4e44b-41ff-4418-a78d-f28fc2d2be2b